{"text_format":"3","workbook":"xlsx","n_sheets":20,"sheets":["Consignes","Identification du déclarant","Exemple déroulé CI","Identification élèves CI","Présences élèves CI","Assiduité élèves CI","Déroulé CI","Identification élèves CB 1ère","Présences élèves CB 1ère","Assiduité élèves CB1 ","Déroulé CB 1ère","Identification élèves CB 2ème","Présences élèves CB 2ème","Assiduité_Réussite élèves CB2","Déroulé CB 2ème","Identification élèves CS","Présences élèves CS","Assiduité_Réussite élèves CS","Déroulé CS","Listes déroulantes"],"not_rendered":{"images":1,"defined_names":577,"comments":13},"read":"whole","date_system":"1900"}

{"sheet":"Consignes","index":0,"n_rows":32,"n_cols":1,"rows_kept":32}
["Formation en apiculture"]
[]
["DECLARATIONS DE CREANCE"]
[]
["CONSIGNES POUR LE REMPLISSAGE DES TABLEAUX JUSTIFICATIFS LIES A L'ORGANISATION DES COURS "]
[]
["I. Préalables"]
[]
["Abréviations utilisées : CB : cours de base / CI : cours d'initiation / CS : cours de spécialiation / DC : déclaration de créance"]
[]
["Où trouver ce formulaire ? Sur la page web https://agriculture.wallonie.be/formation-en-apiculture. Dans la partie « Déclarations de créances », cliquer sur le classeur Excel « Formation apiculture_CB-CI-CS_Tableaux introduction DC_Cours.xltx ». Ouvrir le fichier. Le modèle génère un classeur vierge."]
[]
["Note : toujours repartir d’un document fraîchement téléchargé (ne jamais repartir d’un modèle enregistré sur votre ordinateur) car les documents peuvent varier d’une année à l’autre (actualisation sur le site)."]
[]
["Enregistrer le nouveau classeur sur votre ordinateur (par exemple, sous le nom initial + les abréviations de votre organisme). Exemple pour l'association \"Les Abeilles heureuses\" (LAH) : \"Formation apiculture_CB-CI-CS_Tableaux introduction DC_Cours1\" devient \"Formation apiculture_CB-CI-CS_Tableaux introduction DC_Cours_LAH\"."]
[]
["II. Comment remplir les tableaux ?"]
[]
["1° Dans la feuille \"Identification du déclarant\", remplissez les 2 cases en rouge en utilisant les 2 listes déroulantes. Ces données seront reprises automatiquement dans les feuilles suivantes ; elles ne doivent donc être introduites qu’une seule fois."]
[]
["2° Repérer les 4 feuilles correspondant au cours pour lequel vous introduisez une DC : les 4 feuilles apparaissent dans l'ordre suivant : CI > CB > CS. Pour chaque cours, les feuilles apparaissent dans l'ordre suivant : Identification des élèves > Présences des élèves > Réussite des élèves > Déroulé du cours."]
[]
["3° Remplir les 4 feuilles :"]
[]
["1) identification des élèves : rien de particulier ; indiquer la nationalité par une lettre ; ramenez le tableau à sa juste taille en supprimant les lignes de données non remplies ;"]
["2) présences des élèves : préremplissez les colonnes \"Nom\" (en lettres capitales) et \"Prénom\" > indiquez le n° des cours (une feuille pour 5 séances) > ramenez le tableau à sa juste taille en supprimant les lignes de données inutiles (vides) ; > imprimez (prévoyez autant de pages que le nombre total de séances le nécessite) > faites signer les élèves présents en début de chaque séance de cours, reprenez la feuille et barrez d'une croix indélébile l'entièreté de chaque case vide correspondant à un élève absent à la séance ;"]
["3) assiduité (et réussite) des élèves : établissez en fin cours un bilan de l'assiduité de chaque élève : pourcentage de présences = (nombre de présences / nombres de séances) x 100. Pour les cours de base, notez les pourcentages obtenus en fin de 1ère et de 2ème pour les cours théoriques et pratiques. Pour les cours de spécialisation, notez les évaluations obtenues pour les connaissances et compétences acquises."]
["4) déroulé du cours : respectez les consignes de formatage présentes en début de chaque colonne ; en particulier, pour les prestations des formateurs, indiquez les nom et prénom des formateurs en tête de case pour laisser la place nécessaire à la signature > imprimez > faites signer les formateurs. Note : avant d'imprimer la dernère page (fin du cours), réduisez cette dernière à sa juste taille en supprimant les lignes inutiles tout en laissant la dernière ligne \"TOTAUX\";"]
[]
["III. Comment imprimer les tableaux ?"]
[]
["Ramener chaque tableau à sa juste taille (voir ci-dessus) > imprimer en recto uniquement."]

{"sheet":"Identification du déclarant","index":1,"n_rows":12,"n_cols":1,"rows_kept":12,"merged":[[0,0,0,5],[2,0,2,5],[4,0,4,5],[6,0,6,5]]}
["Formation en apiculture"]
[]
["DECLARATION DE CREANCE"]
[]
["Cours de base - Cours d’initiation - Cours de spécialisation"]
[]
["IDENTIFICATION DU DECLARANT"]
[]
["Année de l'appel à projets - Date de l'arrêté de subvention - N° de dossier :"]
["Liste déroulante"]
["Dénomination du centre de formation :"]
["Liste déroulante"]

{"sheet":"Exemple déroulé CI","index":2,"n_rows":27,"n_cols":10,"rows_kept":27,"merged":[[0,0,0,9],[2,0,2,9],[3,0,3,9],[4,0,4,9],[6,0,6,9],[8,0,8,9],[10,0,10,9],[12,0,12,9],[14,6,14,9],[26,0,26,1]]}
["Attention : cette feuille constitue un exemple de remplissage pour un cours d’initiation. Il est tout à fait fictif et n’est pas représentatif de ce que doit être un bon cours"]
[]
["Formation en apiculture"]
[]
["Appel à projets 2016 - AM du 23/12/2016 - Dossier n° D32-0324"]
["            Direction de la Qualité et du Bien-être animal"]
["DECLARATION DE CREANCE"]
[]
["Les Abeilles heureuses a.s.b.l."]
[]
["Cours d'initiation"]
[]
["I.3. DEROULE DU COURS"]
[]
[{"$nulls":6},"Nom + initiale prénom + signature"]
["Date","N°","Heures (de à )","Nb h. Th.","Nb h. Pr.","Matière(s) enseignée(s)","Formateur théorique ou pratique 1","Formateur pratique 2","Formateur pratique 3","Formateur pratique 4"]
["2016-09-03",1,"9-12",{"v":2,"d":"2.0"},null,"L'abeille dans son environnement - La pollinisation entomophile","DUPONT P."]
[null,2,null,null,{"v":1,"d":"1.0"},"Les plantes mellifères dans l'environnement du rucher - sortie sur le terrain","DUBOIS A."]
["2016-09-10",3,"9-12",{"v":2,"d":"2.0"},null,"Les insectes pollinisateurs","DEVOS C."]
[null,4,null,{"v":1,"d":"1.0"},null,"La morphologie externe de l'abeille","DEVOS C."]
["2016-09-17",5,"9-12",{"v":3,"d":"3.0"},null,"L'abeille, un insecte social","DUPONT P."]
["2016-09-24",6,"9-12,5",{"v":2,"d":"2.0"},null,"Détenir des ruches : avantages, inconvénients, responsabilités","LELOUP A."]
[null,7,null,null,1.5,"Découverte du rucher","LELOUP A."]
["2016-10-01",8,"14-16",null,{"v":2,"d":"2.0"},"Découverte de la ruche","LELOUP A.","ALBERT J."]
["2016-10-02",9,"9-12",{"v":2,"d":"2.0"},null,"Découverte des produits de la ruche","ALBERT J."]
[null,10,null,null,{"v":1,"d":"1.0"},"Découverte des produits de la ruche : dégustation","ALBERT J."]
[null,null,"TOTAUX",{"$f":"SUM(D17:D26)","v":{"v":12,"d":"12.0"}},{"$f":"SUM(E17:E26)","v":5.5}]

{"sheet":"Identification élèves CI","index":3,"n_rows":49,"n_cols":7,"rows_kept":49,"merged":[[0,0,0,6],[1,0,1,6],[2,0,2,6],[3,0,3,2],[4,0,4,6],[6,0,6,6],[8,0,8,6],[10,0,10,6]]}
["Formation en apiculture"]
[]
[{"$f":"IF('Identification du déclarant'!A10=\"Liste déroulante\",\"Remplissez la feuille d'identification du déclarant\",'Identification du déclarant'!A10)","v":"Remplissez la feuille d'identification du déclarant"}]
["            Direction de la Qualité et du Bien-être animal"]
["DECLARATION DE CREANCE"]
[]
[{"$f":"IF('Identification du déclarant'!A12=\"Liste déroulante\",\"Remplissez la feuille d'identification du déclarant\",'Identification du déclarant'!A12)","v":"Remplissez la feuille d'identification du déclarant"}]
[]
["Cours d'initiation"]
[]
["I.1. IDENTIFICATION DES ELEVES"]
[]
[null,"Nom","Prénom","Adresse","Nat.","Téléphone","Courriel"]
[1]
[2]
[3]
[4]
[5]
[6]
[7]
[8]
[9]
[10]
[11]
[12]
[13]
[14]
[15]
[16]
[17]
[18]
[19]
[20]
[21]
[22]
[23]
[24]
[25]
[26]
[27]
[28]
[29]
[30]
[31]
[32]
[33]
[34]
[35]
[36]

{"sheet":"Présences élèves CI","index":4,"n_rows":51,"n_cols":8,"rows_kept":51,"merged":[[0,0,0,7],[1,0,1,6],[2,0,2,7],[3,0,3,2],[4,0,4,7],[6,0,7,7],[8,0,8,7],[10,0,10,7],[12,1,13,2],[12,3,12,7],[14,3,14,7]]}
["Formation en apiculture"]
[]
[{"$f":"IF('Identification du déclarant'!A10=\"Liste déroulante\",\"Remplissez la feuille d'identification du déclarant\",'Identification du déclarant'!A10)","v":"Remplissez la feuille d'identification du déclarant"}]
["            Direction de la Qualité et du Bien-être animal"]
["DECLARATION DE CREANCE"]
[]
[{"$f":"IF('Identification du déclarant'!A12=\"Liste déroulante\",\"Remplissez la feuille d'identification du déclarant\",'Identification du déclarant'!A12)","v":"Remplissez la feuille d'identification du déclarant"}]
[]
["Cours d'initiation"]
[]
["I.2. PRESENCES DES ELEVES"]
[]
[null,"Elève",null,"Cours"]
[{"$nulls":3},"N° ...","N° ...","N° ...","N° ...","N° ..."]
[null,"Nom","Prénom","Signature"]
[1]
[2]
[3]
[4]
[5]
[6]
[7]
[8]
[9]
[10]
[11]
[12]
[13]
[14]
[15]
[16]
[17]
[18]
[19]
[20]
[21]
[22]
[23]
[24]
[25]
[26]
[27]
[28]
[29]
[30]
[31]
[32]
[33]
[34]
[35]
[36]

{"sheet":"Assiduité élèves CI","index":5,"n_rows":49,"n_cols":4,"rows_kept":49,"merged":[[0,0,0,3],[1,0,1,3],[2,0,2,3],[3,0,3,2],[4,0,4,3],[6,0,6,3],[8,0,8,3],[10,0,10,3]]}
["Formation en apiculture"]
[]
[{"$f":"IF('Identification du déclarant'!A10=\"Liste déroulante\",\"Remplissez la feuille d'identification du déclarant\",'Identification du déclarant'!A10)","v":"Remplissez la feuille d'identification du déclarant"}]
["            Direction de la Qualité et du Bien-être animal"]
["DECLARATION DE CREANCE"]
[]
[{"$f":"IF('Identification du déclarant'!A12=\"Liste déroulante\",\"Remplissez la feuille d'identification du déclarant\",'Identification du déclarant'!A12)","v":"Remplissez la feuille d'identification du déclarant"}]
[]
["Cours d'initiation"]
[]
["I.3. ASSIDUITE DES ELEVES"]
[]
[null,"Nom","Prénom","Assiduité (%)"]
[1]
[2]
[3]
[4]
[5]
[6]
[7]
[8]
[9]
[10]
[11]
[12]
[13]
[14]
[15]
[16]
[17]
[18]
[19]
[20]
[21]
[22]
[23]
[24]
[25]
[26]
[27]
[28]
[29]
[30]
[31]
[32]
[33]
[34]
[35]
[36]

{"sheet":"Déroulé CI","index":6,"n_rows":39,"n_cols":10,"rows_kept":39,"merged":[[4,0,4,9],[5,0,5,6],[6,0,6,9],[8,0,8,9],[10,0,10,9],[12,0,12,9],[14,0,14,9],[16,6,16,9]]}
["Pour remplir, voir les explications figurant dans les commentaires en têtes de colonnes (placer le curseur sur le coin supérieur droit (rouge) de la cellule-titre) - voir exemple en feuille 2"]
["Th. = Théorie ; Pr. = pratique"]
["Note : pour un CI organisé seul, subsidiation de maximum 12 h. de théorie et 3 h. de pratique ; pour un CI inclus dans un CB, les heures excédentaires sont comptabilisées dans le CB"]
[]
["Formation en apiculture"]
[]
[{"$f":"IF('Identification du déclarant'!A10=\"Liste déroulante\",\"Remplissez la feuille d'identification du déclarant\",'Identification du déclarant'!A10)","v":"Remplissez la feuille d'identification du déclarant"}]
["            Direction de la Qualité et du Bien-être animal"]
["DECLARATION DE CREANCE"]
[]
[{"$f":"IF('Identification du déclarant'!A12=\"Liste déroulante\",\"Remplissez la feuille d'identification du déclarant\",'Identification du déclarant'!A12)","v":"Remplissez la feuille d'identification du déclarant"}]
[]
["Cours d'initiation"]
[]
["I.4. DEROULE DU COURS"]
[]
[{"$nulls":6},"Nom + initiale prénom + signature"]
["Date","N°","Heures (de à )","Nb h. Th.","Nb h. Pr.","Matière(s) enseignée(s)","Formateur théorique ou pratique 1","Formateur pratique 2","Formateur pratique 3","Formateur pratique 4"]
[null,1]
[null,2]
[null,3]
[null,4]
[null,5]
[null,6]
[null,7]
[null,8]
[null,9]
[null,10]
[null,11]
[null,12]
[null,13]
[null,14]
[null,15]
[null,16]
[null,17]
[null,18]
[null,19]
[null,20]
[null,null,"TOTAUX",{"$f":"SUM(D19:D38)","v":{"v":0,"d":"0.0"}},{"$f":"SUM(E19:E38)","v":{"v":0,"d":"0.0"}}]

{"sheet":"Identification élèves CB 1ère","index":7,"n_rows":49,"n_cols":8,"rows_kept":49,"merged":[[0,0,0,7],[1,0,1,6],[2,0,2,7],[3,0,3,2],[4,0,4,7],[6,0,6,7],[8,0,8,7],[10,0,10,7]]}
["Formation en apiculture"]
[]
[{"$f":"IF('Identification du déclarant'!A10=\"Liste déroulante\",\"Remplissez la feuille d'identification du déclarant\",'Identification du déclarant'!A10)","v":"Remplissez la feuille d'identification du déclarant"}]
["            Direction de la Qualité et du Bien-être animal"]
["DECLARATION DE CREANCE"]
[]
[{"$f":"IF('Identification du déclarant'!A12=\"Liste déroulante\",\"Remplissez la feuille d'identification du déclarant\",'Identification du déclarant'!A12)","v":"Remplissez la feuille d'identification du déclarant"}]
[]
["Cours de base 1ère année"]
[]
["I.1. IDENTIFICATION DES ELEVES"]
[]
[null,"Nom","Prénom","Adresse","Nat.","Téléphone","Courriel","CI"]
[1]
[2]
[3]
[4]
[5]
[6]
[7]
[8]
[9]
[10]
[11]
[12]
[13]
[14]
[15]
[16]
[17]
[18]
[19]
[20]
[21]
[22]
[23]
[24]
[25]
[26]
[27]
[28]
[29]
[30]
[31]
[32]
[33]
[34]
[35]
[36]

{"sheet":"Présences élèves CB 1ère","index":8,"n_rows":51,"n_cols":8,"rows_kept":51,"merged":[[0,0,0,7],[1,0,1,6],[2,0,2,7],[3,0,3,2],[4,0,4,7],[6,0,6,7],[8,0,8,7],[10,0,10,7],[12,1,13,2],[12,3,12,7],[14,3,14,7]]}
["Formation en apiculture"]
[]
[{"$f":"IF('Identification du déclarant'!A10=\"Liste déroulante\",\"Remplissez la feuille d'identification du déclarant\",'Identification du déclarant'!A10)","v":"Remplissez la feuille d'identification du déclarant"}]
["            Direction de la Qualité et du Bien-être animal"]
["DECLARATION DE CREANCE"]
[]
[{"$f":"IF('Identification du déclarant'!A12=\"Liste déroulante\",\"Remplissez la feuille d'identification du déclarant\",'Identification du déclarant'!A12)","v":"Remplissez la feuille d'identification du déclarant"}]
[]
["Cours de base 1ère année"]
[]
["I.2. PRESENCES DES ELEVES"]
[]
[null,"Elève",null,"Cours"]
[{"$nulls":3},"N° ...","N° ...","N° ...","N° ...","N° ..."]
[null,"Nom","Prénom","Signature"]
[1]
[2]
[3]
[4]
[5]
[6]
[7]
[8]
[9]
[10]
[11]
[12]
[13]
[14]
[15]
[16]
[17]
[18]
[19]
[20]
[21]
[22]
[23]
[24]
[25]
[26]
[27]
[28]
[29]
[30]
[31]
[32]
[33]
[34]
[35]
[36]

{"sheet":"Assiduité élèves CB1 ","index":9,"n_rows":49,"n_cols":4,"rows_kept":49,"merged":[[0,0,0,3],[1,0,1,3],[2,0,2,3],[4,0,4,3],[5,0,5,3],[6,0,6,3],[7,0,7,3],[8,0,8,3],[9,0,9,3],[10,0,10,3],[11,0,11,3]]}
["Formation en apiculture"]
[]
[{"$f":"IF('Identification du déclarant'!A10=\"Liste déroulante\",\"Remplissez la feuille d'identification du déclarant\",'Identification du déclarant'!A10)","v":"Remplissez la feuille d'identification du déclarant"}]
["            Direction de la Qualité et du Bien-être animal"]
["DECLARATION DE CREANCE"]
[]
[{"$f":"IF('Identification du déclarant'!A12=\"Liste déroulante\",\"Remplissez la feuille d'identification du déclarant\",'Identification du déclarant'!A12)","v":"Remplissez la feuille d'identification du déclarant"}]
[]
["Cours de base 1ère année"]
[]
["I.3. ASSIDUITE ET REUSSITE DES ELEVES"]
[]
[null,"Nom","Prénom","Assiduité (%)"]
[1]
[2]
[3]
[4]
[5]
[6]
[7]
[8]
[9]
[10]
[11]
[12]
[13]
[14]
[15]
[16]
[17]
[18]
[19]
[20]
[21]
[22]
[23]
[24]
[25]
[26]
[27]
[28]
[29]
[30]
[31]
[32]
[33]
[34]
[35]
[36]

{"sheet":"Déroulé CB 1ère","index":10,"n_rows":139,"n_cols":10,"rows_kept":139,"merged":[[4,0,4,9],[5,0,5,6],[6,0,6,9],[8,0,8,9],[10,0,10,9],[12,0,12,9],[14,0,14,9],[16,6,16,9]]}
["Pour remplir, voir les explications figurant dans les commentaires en têtes de colonnes (placer le curseur sur le coin supérieur droit (rouge) de la cellule-titre) - voir exemple en feuille 2"]
["Th. = Théorie ; Pr. = pratique"]
["Note : ne plus replacer les cours donnés dans le CI"]
[]
["Formation en apiculture"]
[]
[{"$f":"IF('Identification du déclarant'!A10=\"Liste déroulante\",\"Remplissez la feuille d'identification du déclarant\",'Identification du déclarant'!A10)","v":"Remplissez la feuille d'identification du déclarant"}]
["            Direction de la Qualité et du Bien-être animal"]
["DECLARATION DE CREANCE"]
[]
[{"$f":"IF('Identification du déclarant'!A12=\"Liste déroulante\",\"Remplissez la feuille d'identification du déclarant\",'Identification du déclarant'!A12)","v":"Remplissez la feuille d'identification du déclarant"}]
[]
["Cours de base 1ère année"]
[]
["I.4. DEROULE DU COURS"]
[]
[{"$nulls":6},"Nom + initiale prénom + signature"]
["Date","N°","Heures (de à )","Nb h. Th.","Nb h. Pr.","Matière(s) enseignée(s)","Formateur théorique ou pratique 1","Formateur pratique 2","Formateur pratique 3","Formateur pratique 4"]
[null,1]
[null,2]
[null,3]
[null,4]
[null,5]
[null,6]
[null,7]
[null,8]
[null,9]
[null,10]
[null,11]
[null,12]
[null,13]
[null,14]
[null,15]
[null,16]
[null,17]
[null,18]
[null,19]
[null,20]
[null,21]
[null,22]
[null,23]
[null,24]
[null,25]
[null,26]
[null,27]
[null,28]
[null,29]
[null,30]
[null,31]
[null,32]
[null,33]
[null,34]
[null,35]
[null,36]
[null,37]
[null,38]
[null,39]
[null,40]
[null,41]
[null,42]
[null,43]
[null,44]
[null,45]
[null,46]
[null,47]
[null,48]
[null,49]
[null,50]
[null,51]
[null,52]
[null,53]
[null,54]
[null,55]
[null,56]
[null,57]
[null,58]
[null,59]
[null,60]
[null,61]
[null,62]
[null,63]
[null,64]
[null,65]
[null,66]
[null,67]
[null,68]
[null,69]
[null,70]
[null,71]
[null,72]
[null,73]
[null,74]
[null,75]
[null,76]
[null,77]
[null,78]
[null,79]
[null,80]
[null,81]
[null,82]
[null,83]
[null,84]
[null,85]
[null,86]
[null,87]
[null,88]
[null,89]
[null,90]
[null,91]
[null,92]
[null,93]
[null,94]
[null,95]
[null,96]
[null,97]
[null,98]
[null,99]
[null,100]
[null,101]
[null,102]
[null,103]
[null,104]
[null,105]
[null,106]
[null,107]
[null,108]
[null,109]
[null,110]
[null,111]
[null,112]
[null,113]
[null,114]
[null,115]
[null,116]
[null,117]
[null,118]
[null,119]
[null,120]
[null,null,"TOTAUX",{"$f":"SUM(D19:D138)","v":{"v":0,"d":"0.0"}},{"$f":"SUM(E19:E138)","v":{"v":0,"d":"0.0"}}]

{"sheet":"Identification élèves CB 2ème","index":11,"n_rows":49,"n_cols":8,"rows_kept":49,"merged":[[0,0,0,7],[1,0,1,6],[2,0,2,7],[3,0,3,2],[4,0,4,7],[6,0,6,7],[8,0,8,7],[10,0,10,7]]}
["Formation en apiculture"]
[]
[{"$f":"IF('Identification du déclarant'!A10=\"Liste déroulante\",\"Remplissez la feuille d'identification du déclarant\",'Identification du déclarant'!A10)","v":"Remplissez la feuille d'identification du déclarant"}]
["            Direction de la Qualité et du Bien-être animal"]
["DECLARATION DE CREANCE"]
[]
[{"$f":"IF('Identification du déclarant'!A12=\"Liste déroulante\",\"Remplissez la feuille d'identification du déclarant\",'Identification du déclarant'!A12)","v":"Remplissez la feuille d'identification du déclarant"}]
[]
["Cours de base 2ème année"]
[]
["I.1. IDENTIFICATION DES ELEVES"]
[]
[null,"Nom","Prénom","Adresse","Nat.","Téléphone","Courriel","CB 1"]
[1]
[2]
[3]
[4]
[5]
[6]
[7]
[8]
[9]
[10]
[11]
[12]
[13]
[14]
[15]
[16]
[17]
[18]
[19]
[20]
[21]
[22]
[23]
[24]
[25]
[26]
[27]
[28]
[29]
[30]
[31]
[32]
[33]
[34]
[35]
[36]

{"sheet":"Présences élèves CB 2ème","index":12,"n_rows":51,"n_cols":8,"rows_kept":51,"merged":[[0,0,0,7],[1,0,1,6],[2,0,2,7],[3,0,3,2],[4,0,4,7],[6,0,6,7],[8,0,8,7],[10,0,10,7],[12,1,13,2],[12,3,12,7],[14,3,14,7]]}
["Formation en apiculture"]
[]
[{"$f":"IF('Identification du déclarant'!A10=\"Liste déroulante\",\"Remplissez la feuille d'identification du déclarant\",'Identification du déclarant'!A10)","v":"Remplissez la feuille d'identification du déclarant"}]
["            Direction de la Qualité et du Bien-être animal"]
["DECLARATION DE CREANCE"]
[]
[{"$f":"IF('Identification du déclarant'!A12=\"Liste déroulante\",\"Remplissez la feuille d'identification du déclarant\",'Identification du déclarant'!A12)","v":"Remplissez la feuille d'identification du déclarant"}]
[]
["Cours de base 2ème année"]
[]
["I.2. PRESENCES DES ELEVES"]
[]
[null,"Elève",null,"Cours"]
[{"$nulls":3},"N° ...","N° ...","N° ...","N° ...","N° ..."]
[null,"Nom","Prénom","Signature"]
[1]
[2]
[3]
[4]
[5]
[6]
[7]
[8]
[9]
[10]
[11]
[12]
[13]
[14]
[15]
[16]
[17]
[18]
[19]
[20]
[21]
[22]
[23]
[24]
[25]
[26]
[27]
[28]
[29]
[30]
[31]
[32]
[33]
[34]
[35]
[36]

{"sheet":"Assiduité_Réussite élèves CB2","index":13,"n_rows":49,"n_cols":7,"rows_kept":49,"merged":[[0,0,0,6],[1,0,1,3],[2,0,2,6],[3,0,3,2],[4,0,5,6],[6,0,6,6],[8,0,8,6],[10,0,11,6]]}
["Formation en apiculture"]
[]
[{"$f":"IF('Identification du déclarant'!A10=\"Liste déroulante\",\"Remplissez la feuille d'identification du déclarant\",'Identification du déclarant'!A10)","v":"Remplissez la feuille d'identification du déclarant"}]
["            Direction de la Qualité et du Bien-être animal"]
["DECLARATION DE CREANCE"]
[]
[{"$f":"IF('Identification du déclarant'!A12=\"Liste déroulante\",\"Remplissez la feuille d'identification du déclarant\",'Identification du déclarant'!A12)","v":"Remplissez la feuille d'identification du déclarant"}]
[]
["Cours de base 2ème année"]
[]
["I.3. ASSIDUITE ET REUSSITE DES ELEVES"]
[]
[null,"Nom","Prénom","Assiduité (%)","Note théorique (%)","Note pratique (%)","Note globale (%)"]
[1]
[2]
[3]
[4]
[5]
[6]
[7]
[8]
[9]
[10]
[11]
[12]
[13]
[14]
[15]
[16]
[17]
[18]
[19]
[20]
[21]
[22]
[23]
[24]
[25]
[26]
[27]
[28]
[29]
[30]
[31]
[32]
[33]
[34]
[35]
[36]

{"sheet":"Déroulé CB 2ème","index":14,"n_rows":138,"n_cols":10,"rows_kept":138,"merged":[[3,0,3,9],[4,0,4,6],[5,0,5,9],[7,0,7,9],[9,0,9,9],[11,0,11,9],[13,0,13,9],[15,6,15,9]]}
["Pour remplir, voir les explications figurant dans les commentaires en têtes de colonnes (placer le curseur sur le coin supérieur droit (rouge) de la cellule-titre) - voir exemple en feuille 2"]
["Th. = Théorie ; Pr. = pratique"]
[]
["Formation en apiculture"]
[]
[{"$f":"IF('Identification du déclarant'!A10=\"Liste déroulante\",\"Remplissez la feuille d'identification du déclarant\",'Identification du déclarant'!A10)","v":"Remplissez la feuille d'identification du déclarant"}]
["            Direction de la Qualité et du Bien-être animal"]
["DECLARATION DE CREANCE"]
[]
[{"$f":"IF('Identification du déclarant'!A12=\"Liste déroulante\",\"Remplissez la feuille d'identification du déclarant\",'Identification du déclarant'!A12)","v":"Remplissez la feuille d'identification du déclarant"}]
[]
["Cours de base 2ème année"]
[]
["I.4. DEROULE DU COURS"]
[]
[{"$nulls":6},"Nom + initiale prénom + signature"]
["Date","N°","Heures (de à )","Nb h. Th.","Nb h. Pr.","Matière(s) enseignée(s)","Formateur théorique ou pratique 1","Formateur pratique 2","Formateur pratique 3","Formateur pratique 4"]
[null,1]
[null,2]
[null,3]
[null,4]
[null,5]
[null,6]
[null,7]
[null,8]
[null,9]
[null,10]
[null,11]
[null,12]
[null,13]
[null,14]
[null,15]
[null,16]
[null,17]
[null,18]
[null,19]
[null,20]
[null,21]
[null,22]
[null,23]
[null,24]
[null,25]
[null,26]
[null,27]
[null,28]
[null,29]
[null,30]
[null,31]
[null,32]
[null,33]
[null,34]
[null,35]
[null,36]
[null,37]
[null,38]
[null,39]
[null,40]
[null,41]
[null,42]
[null,43]
[null,44]
[null,45]
[null,46]
[null,47]
[null,48]
[null,49]
[null,50]
[null,51]
[null,52]
[null,53]
[null,54]
[null,55]
[null,56]
[null,57]
[null,58]
[null,59]
[null,60]
[null,61]
[null,62]
[null,63]
[null,64]
[null,65]
[null,66]
[null,67]
[null,68]
[null,69]
[null,70]
[null,71]
[null,72]
[null,73]
[null,74]
[null,75]
[null,76]
[null,77]
[null,78]
[null,79]
[null,80]
[null,81]
[null,82]
[null,83]
[null,84]
[null,85]
[null,86]
[null,87]
[null,88]
[null,89]
[null,90]
[null,91]
[null,92]
[null,93]
[null,94]
[null,95]
[null,96]
[null,97]
[null,98]
[null,99]
[null,100]
[null,101]
[null,102]
[null,103]
[null,104]
[null,105]
[null,106]
[null,107]
[null,108]
[null,109]
[null,110]
[null,111]
[null,112]
[null,113]
[null,114]
[null,115]
[null,116]
[null,117]
[null,118]
[null,119]
[null,120]
[null,null,"TOTAUX",{"$f":"SUM(D18:D137)","v":{"v":0,"d":"0.0"}},{"$f":"SUM(E18:E137)","v":{"v":0,"d":"0.0"}}]

{"sheet":"Identification élèves CS","index":15,"n_rows":49,"n_cols":8,"rows_kept":49,"merged":[[0,0,0,7],[1,0,1,6],[2,0,2,7],[3,0,3,2],[4,0,4,7],[6,0,6,7],[8,0,8,7],[10,0,10,7]]}
["Formation en apiculture"]
[]
[{"$f":"IF('Identification du déclarant'!A10=\"Liste déroulante\",\"Remplissez la feuille d'identification du déclarant\",'Identification du déclarant'!A10)","v":"Remplissez la feuille d'identification du déclarant"}]
["            Direction de la Qualité et du Bien-être animal"]
["DECLARATION DE CREANCE"]
[]
[{"$f":"IF('Identification du déclarant'!A12=\"Liste déroulante\",\"Remplissez la feuille d'identification du déclarant\",'Identification du déclarant'!A12)","v":"Remplissez la feuille d'identification du déclarant"}]
[]
["Cours de spécialisation"]
[]
["I.1. IDENTIFICATION DES ELEVES"]
[]
[null,"Nom","Prénom","Adresse","Nat.","Téléphone","Courriel","CB"]
[1]
[2]
[3]
[4]
[5]
[6]
[7]
[8]
[9]
[10]
[11]
[12]
[13]
[14]
[15]
[16]
[17]
[18]
[19]
[20]
[21]
[22]
[23]
[24]
[25]
[26]
[27]
[28]
[29]
[30]
[31]
[32]
[33]
[34]
[35]
[36]

{"sheet":"Présences élèves CS","index":16,"n_rows":51,"n_cols":8,"rows_kept":51,"merged":[[0,0,0,7],[1,0,1,6],[2,0,2,7],[3,0,3,2],[4,0,4,7],[6,0,6,7],[8,0,8,7],[10,0,10,7],[12,1,13,2],[12,3,12,7],[14,3,14,7]]}
["Formation en apiculture"]
[]
[{"$f":"IF('Identification du déclarant'!A10=\"Liste déroulante\",\"Remplissez la feuille d'identification du déclarant\",'Identification du déclarant'!A10)","v":"Remplissez la feuille d'identification du déclarant"}]
["            Direction de la Qualité et du Bien-être animal"]
["DECLARATION DE CREANCE"]
[]
[{"$f":"IF('Identification du déclarant'!A12=\"Liste déroulante\",\"Remplissez la feuille d'identification du déclarant\",'Identification du déclarant'!A12)","v":"Remplissez la feuille d'identification du déclarant"}]
[]
["Cours de spécialisation"]
[]
["I.2. PRESENCES DES ELEVES"]
[]
[null,"Elève",null,"Cours"]
[{"$nulls":3},"N° ...","N° ...","N° ...","N° ...","N° ..."]
[null,"Nom","Prénom","Signature"]
[1]
[2]
[3]
[4]
[5]
[6]
[7]
[8]
[9]
[10]
[11]
[12]
[13]
[14]
[15]
[16]
[17]
[18]
[19]
[20]
[21]
[22]
[23]
[24]
[25]
[26]
[27]
[28]
[29]
[30]
[31]
[32]
[33]
[34]
[35]
[36]

{"sheet":"Assiduité_Réussite élèves CS","index":17,"n_rows":49,"n_cols":7,"rows_kept":49,"merged":[[0,0,0,6],[1,0,1,3],[2,0,2,6],[3,0,3,2],[4,0,4,6],[6,0,6,6],[8,0,8,6],[10,0,10,6]]}
["Formation en apiculture"]
[]
[{"$f":"IF('Identification du déclarant'!A10=\"Liste déroulante\",\"Remplissez la feuille d'identification du déclarant\",'Identification du déclarant'!A10)","v":"Remplissez la feuille d'identification du déclarant"}]
["            Direction de la Qualité et du Bien-être animal"]
["DECLARATION DE CREANCE"]
[]
[{"$f":"IF('Identification du déclarant'!A12=\"Liste déroulante\",\"Remplissez la feuille d'identification du déclarant\",'Identification du déclarant'!A12)","v":"Remplissez la feuille d'identification du déclarant"}]
[]
["Cours de spécialisation"]
[]
["I.3. ASSIDUITE ET REUSSITE DES ELEVES"]
[]
[null,"Nom","Prénom","Assiduité (%)","Evaluation connaissances (%)","Evaluation compétences (%)","Evaluation globale (%)"]
[1]
[2]
[3]
[4]
[5]
[6]
[7]
[8]
[9]
[10]
[11]
[12]
[13]
[14]
[15]
[16]
[17]
[18]
[19]
[20]
[21]
[22]
[23]
[24]
[25]
[26]
[27]
[28]
[29]
[30]
[31]
[32]
[33]
[34]
[35]
[36]

{"sheet":"Déroulé CS","index":18,"n_rows":47,"n_cols":9,"rows_kept":47,"merged":[[2,0,2,8],[4,0,4,8],[6,0,6,8],[8,0,8,8],[10,0,10,8],[12,0,12,8],[14,5,14,8]]}
["Pour remplir, voir les explications figurant dans les commentaires en têtes de colonnes (placer le curseur sur le coin supérieur droit (rouge) de la cellule-titre) - voir exemple en feuille 2"]
[]
["Formation en apiculture"]
[]
[{"$f":"IF('Identification du déclarant'!A10=\"Liste déroulante\",\"Remplissez la feuille d'identification du déclarant\",'Identification du déclarant'!A10)","v":"Remplissez la feuille d'identification du déclarant"}]
["            Direction de la Qualité et du Bien-être animal"]
["DECLARATION DE CREANCE"]
[]
[{"$f":"IF('Identification du déclarant'!A12=\"Liste déroulante\",\"Remplissez la feuille d'identification du déclarant\",'Identification du déclarant'!A12)","v":"Remplissez la feuille d'identification du déclarant"}]
[]
["Cours de spécialisation"]
[]
["I.4. DEROULE DU COURS"]
[]
[{"$nulls":5},"Nom + initiale prénom + signature"]
["Date","N°","Heures (de à )","Nb h.","Matière(s) enseignée(s)","Formateur 1","Formateur 2","Formateur 3","Formateur 4"]
[null,1]
[null,2]
[null,3]
[null,4]
[null,5]
[null,6]
[null,7]
[null,8]
[null,9]
[null,10]
[null,11]
[null,12]
[null,13]
[null,14]
[null,15]
[null,16]
[null,17]
[null,18]
[null,19]
[null,20]
[null,21]
[null,22]
[null,23]
[null,24]
[null,25]
[null,26]
[null,27]
[null,28]
[null,29]
[null,30]
[null,"TOTAL",null,{"$f":"SUM(D17:D46)","v":{"v":0,"d":"0.0"}}]

{"sheet":"Listes déroulantes","index":19,"n_rows":60,"n_cols":3,"rows_kept":60}
["Année_de_l_appel_à_projets_Cours","Bénéficiaires_Cours"]
["Liste déroulante","Liste déroulante"]
["Appel à projets 2016 - AM du 23/12/2016 - Dossier n° D32-0324","Abeille du Hain a.s.b.l."]
["Appel à projets 2017 - AM du 31/08/2017 - Dossier n° D32-0342","APIVAL a.s.b.l."]
["Appel à projets 2018 - AM du 26/07/2018 - Dossier n° D32-0375","Association des Apiculteurs de Jodoigne, Incourt et Environs a.s.b.l."]
["Appel à projets 2019 - AM du 18/12/2019 - Dossier n° D32-0434","BeeQueen a.s.b.l."]
["Appel à projets 2020 - AM du 20/10/2020 - Dossier n° DQBEA-0516","CARI a.s.b.l."]
["Appel à projets 2021 - AM du 06/12/2021 - Dossier n° DQBEA-0541","CEFOR Invest (CEFOR IEPS Namur) a.s.b.l."]
["Appel à projets 2022 - AM du 19/12/2022 - Dossier n° DQBEA-0581","Centre apicole du Château de Seilles, Rucher école et didactique a.s.b.l."]
["Appel à projets 2023 - AM du 21/11/2023 - Dossier n° DQBEA-0624","Centre de Formation apicole des Hauts-Pays a.s.b.l."]
["Appel à projets 2024 - AM du 10/12/2024 - Dossier n° DQBEA-0676","Centre de Recherche d'Insémination et de Sélection de l'Abeille Buckfast a.s.b.l."]
["Appel à projets 2025 - AM du 20/11/2025 - Dossier n° DQBEA-0721","Centre d'Etude et d'Information Apicole de Mons a.s.b.l."]
["Appel à projets 2026","Cercle apicole de Rochefort et Environs (CARE) a.s.b.l."]
["Appel à projets 2027","Ecole d’Apiculture Namuroise a.s.b.l."]
["Appel à projets 2028","Espace de Découverte du Miel et de l'Abeille. Royale Amicale SYLVAIN THIBAUT a.s.b.l."]
["Appel à projets 2029","Fédération des Apiculteurs du Brabant wallon (FABW) a.s.b.l."]
["Appel à projets 2030","Fédération provinciale d'Apiculture du Luxembourg (FPAL) a.s.b.l."]
[null,"Fédération royale des Unions professionnelles apicoles du Hainaut (FRUPAH) a.s.b.l."]
[null,"Fédération royale provinciale liégeoise d'Apiculture (FRPLA) a.s.b.l."]
[null,"Fédération wallonne de l'Agriculture (FWA) a.s.b.l."]
[null,"Imkerwerke Ostbelgien VoG"]
[null,"Institut apicole de Charleroi a.s.b.l."]
[null,"La Planche d'Envol a.s.b.l."]
[null,"L'Abeille arlonaise a.s.b.l."]
[null,"L'Api d’amon nos-ôtes a.s.b.l."]
[null,"Le Mouchti brabançon a.s.b.l."]
[null,"Les Amis des Abeilles - Section apicole de Huy a.s.b.l."]
[null,"Les Avettes du Mont des Frênes a.s.b.l."]
[null,"Les Babeilles a.s.b.l."]
[null,"Les Compagnons de Saint-Ambroise a.s.b.l."]
[null,"Les Divines Abeilles - Rucher Ecole de Berloz-Waremme a.s.b.l."]
[null,"Les Ruchers du Sud-Luxembourg a.s.b.l."]
[null,"Parc naturel Viroin-Hermeton a.s.b.l."]
[null,"Rucher Ecole de la Vallée de l’Ourthe et Neblon (REVON) a.s.b.l."]
[null,"Rucher Ecole de Tournai a.s.b.l."]
[null,"Rucher Ecole du Péruwelzis a.s.b.l."]
[null,"Rucher Ecole FRPLA a.s.b.l."]
[null,"Rucher expérimental Houille-Lesse-Semois a.s.b.l."]
[null,"Section Apicole ApiBrabant a.s.b.l."]
[null,"Section apicole de Courcelles a.s.b.l."]
[null,"Section apicole Forrières-Wellin a.s.b.l."]
[null,"Société apicole de Tenneville a.s.b.l."]
[null,"Société apicole mouscronnoise a.s.b.l."]
[null,"Société d'Apiculture des Deux-Ourthes a.s.b.l."]
[null,"Union des Fédérations d'Apiculture de Wallonie et Bruxelles (UFAWB) a.s.b.l.",{"$f":"COUNTA(B3:B46)","v":44}]
[null,"Union royale des Ruchers wallons (URRW) a.s.b.l."]
[null,0]
[null,0]
[null,0]
[null,0]
[null,0]
[null,0]
[null,0]
[null,0]
[null,0]
[null,0]
[null,0]
[null,0]
[null,0]
[null,0]